[Event "*** Titled Tuesday Blitz"]
[Site "Chess.com"]
[Date "2021.04.27"]
[Round "6"]
[White "topin8"]
[Black "InvisibleWarrior2252"]
[Result "1-0"]
[WhiteElo "2297"]
[BlackElo "2555"]
[TimeControl "180+1"]
[EndTime "11:05:45 PDT"]
[Termination "topin8 won by resignation"]

1. e4 {[%clk 0:03:00.9]} 1... c5 {[%clk 0:02:59.4]} 2. Nf3 {[%clk 0:03:00.7]}
2... d6 {[%clk 0:02:59.8]} 3. c3 {[%clk 0:03:00.7]} 3... Nf6 {[%clk 0:02:59.6]}
4. Be2 {[%clk 0:03:00.4]} 4... g6 {[%clk 0:02:57.5]} 5. O-O {[%clk 0:02:58.2]}
5... Bg7 {[%clk 0:02:58]} 6. d3 {[%clk 0:02:53.7]} 6... O-O {[%clk 0:02:58.1]}
7. Nbd2 {[%clk 0:02:53.6]} 7... Nc6 {[%clk 0:02:57.5]} 8. Re1 {[%clk 0:02:53]}
8... Rb8 {[%clk 0:02:58]} 9. Nf1 {[%clk 0:02:27.7]} 9... b5 {[%clk 0:02:54.7]}
10. Ng3 {[%clk 0:02:24.8]} 10... b4 {[%clk 0:02:54.2]} 11. d4 {[%clk 0:02:22.4]}
11... cxd4 {[%clk 0:02:44.3]} 12. cxd4 {[%clk 0:02:22]} 12... d5 {[%clk
0:02:44.4]} 13. e5 {[%clk 0:02:21.2]} 13... Ne4 {[%clk 0:02:44.6]} 14. Be3
{[%clk 0:01:58.1]} 14... f6 {[%clk 0:02:37.1]} 15. Rc1 {[%clk 0:01:52.7]} 15...
Qb6 {[%clk 0:02:27.4]} 16. Nxe4 {[%clk 0:01:24.4]} 16... dxe4 {[%clk 0:02:28.3]}
17. d5 {[%clk 0:01:24.1]} 17... Qa5 {[%clk 0:02:22.1]} 18. dxc6 {[%clk
0:01:07.9]} 18... exf3 {[%clk 0:02:20.3]} 19. Qb3+ {[%clk 0:00:56.6]} 19... Kh8
{[%clk 0:02:16.9]} 20. Bxf3 {[%clk 0:00:56.4]} 20... Qc7 {[%clk 0:02:11.9]} 21.
e6 {[%clk 0:00:45.3]} 21... f5 {[%clk 0:02:02.8]} 22. Bc5 {[%clk 0:00:28.1]}
22... a5 {[%clk 0:01:59.2]} 23. Rcd1 {[%clk 0:00:19.8]} 23... Bf6 {[%clk
0:01:58.8]} 24. Rd7 {[%clk 0:00:19.1]} 24... Bxd7 {[%clk 0:01:50.7]} 25. exd7
{[%clk 0:00:19.6]} 25... e5 {[%clk 0:01:34.4]} 26. Bxf8 {[%clk 0:00:14.6]} 26...
Rxf8 {[%clk 0:01:35.3]} 27. Bd5 {[%clk 0:00:14]} 27... e4 {[%clk 0:01:33.2]} 28.
h3 {[%clk 0:00:13.6]} 28... g5 {[%clk 0:01:30.1]} 29. Qc4 {[%clk 0:00:12.6]}
29... Qd6 {[%clk 0:01:26.4]} 30. c7 {[%clk 0:00:09.2]} 30... Qxd7 {[%clk
0:01:25.1]} 31. Be6 {[%clk 0:00:09.4]} 31... Qe7 {[%clk 0:01:10.3]} 32. c8=Q
{[%clk 0:00:09]} 32... Rxc8 {[%clk 0:01:09.7]} 33. Qxc8+ {[%clk 0:00:09.6]}
33... Kg7 {[%clk 0:01:10.6]} 34. Qg8+ {[%clk 0:00:09.7]} 34... Kh6 {[%clk
0:01:11.3]} 35. Bxf5 {[%clk 0:00:10.2]} 35... Bxb2 {[%clk 0:01:09.9]} 36. Qe6+
{[%clk 0:00:09.9]} 36... Qxe6 {[%clk 0:01:10]} 37. Bxe6 {[%clk 0:00:10.5]} 37...
a4 {[%clk 0:01:09.8]} 38. Rxe4 {[%clk 0:00:10.9]} 38... Bc3 {[%clk 0:01:10.7]}
39. Bd7 {[%clk 0:00:10.3]} 39... Kg7 {[%clk 0:01:11.6]} 40. Bxa4 {[%clk
0:00:09.7]} 1-0

[Event "*** Titled Tuesday Blitz"]
[Site "Chess.com"]
[Date "2021.04.27"]
[Round "6"]
[White "Stormeman100100"]
[Black "ckgchess"]
[Result "0-1"]
[WhiteElo "2494"]
[BlackElo "2681"]
[TimeControl "180+1"]
[EndTime "11:05:49 PDT"]
[Termination "ckgchess won by resignation"]

1. e4 {[%clk 0:03:00.9]} 1... c5 {[%clk 0:03:00.1]} 2. Nf3 {[%clk 0:02:57.6]}
2... d6 {[%clk 0:03:00.5]} 3. d4 {[%clk 0:02:57.6]} 3... cxd4 {[%clk 0:03:01.4]}
4. Nxd4 {[%clk 0:02:58.5]} 4... Nf6 {[%clk 0:03:01.6]} 5. Nc3 {[%clk 0:02:59.1]}
5... g6 {[%clk 0:03:02.3]} 6. Be3 {[%clk 0:02:58.4]} 6... Bg7 {[%clk 0:03:01.9]}
7. f3 {[%clk 0:02:59]} 7... a6 {[%clk 0:03:02]} 8. Qd2 {[%clk 0:02:59.6]} 8...
h5 {[%clk 0:03:02.3]} 9. Be2 {[%clk 0:02:58]} 9... Nbd7 {[%clk 0:02:59.3]} 10.
O-O {[%clk 0:02:58.1]} 10... b5 {[%clk 0:02:58.4]} 11. a4 {[%clk 0:02:55]} 11...
b4 {[%clk 0:02:55]} 12. Nd5 {[%clk 0:02:55.3]} 12... Nxd5 {[%clk 0:02:54.3]} 13.
exd5 {[%clk 0:02:56.2]} 13... Bb7 {[%clk 0:02:51.3]} 14. Nc6 {[%clk 0:02:53.2]}
14... Bxc6 {[%clk 0:02:47.4]} 15. dxc6 {[%clk 0:02:54.1]} 15... Ne5 {[%clk
0:02:47.4]} 16. Qxb4 {[%clk 0:02:50.6]} 16... Nxc6 {[%clk 0:02:46.5]} 17. Qb7
{[%clk 0:02:39]} 17... Na5 {[%clk 0:02:38.6]} 18. Qb6 {[%clk 0:02:25.3]} 18...
Qxb6 {[%clk 0:02:10.1]} 19. Bxb6 {[%clk 0:02:16.6]} 19... Nc6 {[%clk 0:02:09.7]}
20. c3 {[%clk 0:02:15.2]} 20... Kd7 {[%clk 0:02:03.7]} 21. Rfc1 {[%clk
0:02:13.3]} 21... Rhb8 {[%clk 0:01:57.2]} 22. a5 {[%clk 0:02:13.4]} 22... e6
{[%clk 0:01:56.2]} 23. b4 {[%clk 0:02:12]} 23... Bf6 {[%clk 0:01:34.3]} 24. Ra3
{[%clk 0:02:06.9]} 24... Bd8 {[%clk 0:01:29]} 25. Be3 {[%clk 0:02:05.2]} 25...
Ne5 {[%clk 0:01:16.2]} 26. Kf2 {[%clk 0:01:56.3]} 26... Ke7 {[%clk 0:01:04.7]}
27. Rd1 {[%clk 0:01:42.1]} 27... Rc8 {[%clk 0:01:02.2]} 28. Rb3 {[%clk
0:01:26.7]} 28... Nc4 {[%clk 0:00:58.9]} 29. Bf4 {[%clk 0:01:21.2]} 29... e5
{[%clk 0:00:53.7]} 30. Bg5+ {[%clk 0:01:20.8]} 30... f6 {[%clk 0:00:52.8]} 31.
Bc1 {[%clk 0:01:20.6]} 31... Ke6 {[%clk 0:00:51.5]} 32. Bd3 {[%clk 0:01:16.6]}
32... f5 {[%clk 0:00:49]} 33. g4 {[%clk 0:01:14.5]} 33... hxg4 {[%clk
0:00:49.9]} 34. fxg4 {[%clk 0:01:14.5]} 34... e4 {[%clk 0:00:49.1]} 35. gxf5+
{[%clk 0:01:14.7]} 35... gxf5 {[%clk 0:00:50]} 36. Bf1 {[%clk 0:01:10.6]} 36...
d5 {[%clk 0:00:45.2]} 37. Bf4 {[%clk 0:01:10.6]} 37... Bc7 {[%clk 0:00:40.2]}
38. Be3 {[%clk 0:00:49.1]} 38... Nxe3 {[%clk 0:00:34.8]} 39. Kxe3 {[%clk
0:00:50]} 39... Bxh2 {[%clk 0:00:34.9]} 40. c4 {[%clk 0:00:49.6]} 40... d4+
{[%clk 0:00:28.3]} 41. Kxd4 {[%clk 0:00:48.2]} 41... Rd8+ {[%clk 0:00:28.2]} 0-1

[Event "*** Titled Tuesday Blitz"]
[Site "Chess.com"]
[Date "2021.04.27"]
[Round "6"]
[White "Pelopidass"]
[Black "superchess02"]
[Result "0-1"]
[WhiteElo "2549"]
[BlackElo "2782"]
[TimeControl "180+1"]
[EndTime "11:05:51 PDT"]
[Termination "superchess02 won by resignation"]

1. d4 {[%clk 0:03:00.9]} 1... Nf6 {[%clk 0:02:44.8]} 2. Nf3 {[%clk 0:03:00.4]}
2... e6 {[%clk 0:02:45.7]} 3. e3 {[%clk 0:03:00.2]} 3... d5 {[%clk 0:02:46.6]}
4. c4 {[%clk 0:02:59.9]} 4... c6 {[%clk 0:02:47]} 5. Nbd2 {[%clk 0:02:59.7]}
5... Bd6 {[%clk 0:02:47.2]} 6. Bd3 {[%clk 0:02:59.9]} 6... O-O {[%clk
0:02:47.7]} 7. O-O {[%clk 0:03:00.5]} 7... b6 {[%clk 0:02:48.3]} 8. b3 {[%clk
0:03:00]} 8... Bb7 {[%clk 0:02:47.6]} 9. Bb2 {[%clk 0:03:00.5]} 9... Nbd7 {[%clk
0:02:48.3]} 10. Qe2 {[%clk 0:02:59.4]} 10... Re8 {[%clk 0:02:47.9]} 11. Ne5
{[%clk 0:02:57.2]} 11... Qc7 {[%clk 0:02:41.8]} 12. f4 {[%clk 0:02:56.8]} 12...
Bf8 {[%clk 0:02:37.6]} 13. Rac1 {[%clk 0:02:51.8]} 13... a5 {[%clk 0:02:36.9]}
14. cxd5 {[%clk 0:02:48.3]} 14... exd5 {[%clk 0:02:36.8]} 15. Rf3 {[%clk
0:02:44.1]} 15... Qd6 {[%clk 0:02:33.6]} 16. Rh3 {[%clk 0:02:41.9]} 16... g6
{[%clk 0:02:33.3]} 17. g4 {[%clk 0:02:38.2]} 17... c5 {[%clk 0:02:26.8]} 18. g5
{[%clk 0:02:36.1]} 18... Ne4 {[%clk 0:02:23.5]} 19. Nxe4 {[%clk 0:02:33.2]}
19... dxe4 {[%clk 0:02:23.9]} 20. Bb5 {[%clk 0:02:33.8]} 20... Nxe5 {[%clk
0:02:15]} 21. dxe5 {[%clk 0:02:28]} 21... Qe6 {[%clk 0:02:15]} 22. Kg2 {[%clk
0:01:59.5]} 22... Red8 {[%clk 0:02:13.2]} 23. Bc4 {[%clk 0:01:59.4]} 23... Bd5
{[%clk 0:02:12.6]} 24. f5 {[%clk 0:01:36.8]} 24... Qxf5 {[%clk 0:02:08.9]} 25.
Rf1 {[%clk 0:01:36.5]} 25... Qxg5+ {[%clk 0:02:02.2]} 26. Rg3 {[%clk 0:01:34.6]}
26... Qe7 {[%clk 0:02:02.1]} 27. e6 {[%clk 0:01:31.7]} 27... Qxe6 {[%clk
0:01:56.5]} 28. Rf6 {[%clk 0:01:27.7]} 28... Bxc4 {[%clk 0:01:54.8]} 29. bxc4
{[%clk 0:01:15.4]} 29... Qd7 {[%clk 0:01:54.4]} 30. Qh5 {[%clk 0:00:55.3]} 30...
Bg7 {[%clk 0:01:50.4]} 31. Rf2 {[%clk 0:00:43.9]} 31... gxh5 {[%clk 0:01:44.2]}
32. Rxg7+ {[%clk 0:00:19.9]} 32... Kf8 {[%clk 0:01:43.7]} 33. Bf6 {[%clk
0:00:20.8]} 33... Qg4+ {[%clk 0:01:35.1]} 34. Rxg4 {[%clk 0:00:20.1]} 34... hxg4
{[%clk 0:01:36]} 35. Bxd8 {[%clk 0:00:20.6]} 35... Rxd8 {[%clk 0:01:36.9]} 36.
Kg3 {[%clk 0:00:20.5]} 36... Rd3 {[%clk 0:01:31.7]} 37. Kf4 {[%clk 0:00:20.1]}
37... Rc3 {[%clk 0:01:32.1]} 38. Rb2 {[%clk 0:00:20.7]} 38... Rxc4 {[%clk
0:01:30.2]} 39. Rxb6 {[%clk 0:00:21.3]} 39... Rc2 {[%clk 0:01:30]} 40. Rb5
{[%clk 0:00:20.6]} 40... a4 {[%clk 0:01:28.6]} 41. a3 {[%clk 0:00:19.8]} 41...
Rxh2 {[%clk 0:01:27.4]} 42. Rxc5 {[%clk 0:00:20.2]} 42... Ra2 {[%clk 0:01:27.1]}
43. Rc3 {[%clk 0:00:19]} 43... h5 {[%clk 0:01:23]} 44. Kxe4 {[%clk 0:00:18.5]}
44... h4 {[%clk 0:01:22.7]} 45. Kf5 {[%clk 0:00:18.5]} 45... g3 {[%clk 0:01:22]}
46. Kf6 {[%clk 0:00:18.9]} 46... Rf2+ {[%clk 0:01:20.2]} 47. Kg5 {[%clk
0:00:17.3]} 47... g2 {[%clk 0:01:20.4]} 0-1

[Event "*** Titled Tuesday Blitz"]
[Site "Chess.com"]
[Date "2021.04.27"]
[Round "6"]
[White "ChadBiryani"]
[Black "AttackSparrow"]
[Result "1-0"]
[WhiteElo "2321"]
[BlackElo "2473"]
[TimeControl "180+1"]
[EndTime "11:05:51 PDT"]
[Termination "ChadBiryani won by checkmate"]

1. d4 {[%clk 0:03:00.6]} 1... Nf6 {[%clk 0:02:56.5]} 2. Bf4 {[%clk 0:02:59.4]}
2... g6 {[%clk 0:02:55]} 3. e3 {[%clk 0:02:59.1]} 3... Bg7 {[%clk 0:02:53.4]} 4.
h4 {[%clk 0:02:59.2]} 4... h5 {[%clk 0:02:50.6]} 5. Nf3 {[%clk 0:02:58.5]} 5...
O-O {[%clk 0:02:50.1]} 6. Be2 {[%clk 0:02:55]} 6... d6 {[%clk 0:02:49.9]} 7. c4
{[%clk 0:02:53.3]} 7... Nbd7 {[%clk 0:02:49.7]} 8. Nc3 {[%clk 0:02:52.9]} 8...
b6 {[%clk 0:02:43.6]} 9. O-O {[%clk 0:02:50.6]} 9... Bb7 {[%clk 0:02:38]} 10.
Ng5 {[%clk 0:02:50]} 10... e5 {[%clk 0:02:27.6]} 11. Bh2 {[%clk 0:02:45.1]}
11... Qe7 {[%clk 0:02:13.7]} 12. Re1 {[%clk 0:02:44]} 12... a6 {[%clk
0:02:02.5]} 13. Rc1 {[%clk 0:02:41.3]} 13... Rae8 {[%clk 0:01:58.5]} 14. Nd5
{[%clk 0:02:07.9]} 14... Nxd5 {[%clk 0:01:32.5]} 15. cxd5 {[%clk 0:02:08.6]}
15... Qd8 {[%clk 0:01:13.2]} 16. dxe5 {[%clk 0:01:49.8]} 16... Nxe5 {[%clk
0:01:05]} 17. e4 {[%clk 0:01:50]} 17... Re7 {[%clk 0:00:33.6]} 18. Bxh5 {[%clk
0:01:31.6]} 18... gxh5 {[%clk 0:00:27.6]} 19. Qxh5 {[%clk 0:01:31.2]} 19... Rfe8
{[%clk 0:00:23.9]} 20. Re3 {[%clk 0:01:24.6]} 20... Ng6 {[%clk 0:00:17.1]} 21.
Qh7+ {[%clk 0:01:16.9]} 21... Kf8 {[%clk 0:00:17.2]} 22. Rf3 {[%clk 0:01:15.9]}
22... Bc8 {[%clk 0:00:02.7]} 23. Qxg6 {[%clk 0:01:12.8]} 23... Kg8 {[%clk
0:00:02.3]} 24. Qh7+ {[%clk 0:01:02.2]} 24... Kf8 {[%clk 0:00:01.7]} 25. Qg6
{[%clk 0:01:02.9]} 25... Kg8 {[%clk 0:00:01.6]} 26. Rxf7 {[%clk 0:01:03.6]}
26... Rxf7 {[%clk 0:00:01.6]} 27. Qxf7+ {[%clk 0:01:04.3]} 27... Kh8 {[%clk
0:00:02.2]} 28. Qh5+ {[%clk 0:01:01.5]} 28... Kg8 {[%clk 0:00:01.8]} 29. Qf7+
{[%clk 0:00:59.3]} 29... Kh8 {[%clk 0:00:01.7]} 30. Qg6 {[%clk 0:00:59.8]} 30...
Kg8 {[%clk 0:00:01.5]} 31. Qh7+ {[%clk 0:00:59.3]} 31... Kf8 {[%clk 0:00:01.8]}
32. Rc3 {[%clk 0:00:53.5]} 32... Qe7 {[%clk 0:00:02]} 33. Rf3+ {[%clk
0:00:51.8]} 33... Bf6 {[%clk 0:00:02.6]} 34. Qh8# {[%clk 0:00:49.7]} 1-0

[Event "*** Titled Tuesday Blitz"]
[Site "Chess.com"]
[Date "2021.04.27"]
[Round "6"]
[White "Klavdia_Nik"]
[Black "chessflav"]
[Result "0-1"]
[WhiteElo "2049"]
[BlackElo "2289"]
[TimeControl "180+1"]
[EndTime "11:05:52 PDT"]
[Termination "chessflav won on time"]

1. Nf3 {[%clk 0:02:57.8]} 1... d5 {[%clk 0:02:59.8]} 2. c4 {[%clk 0:02:48.5]}
2... c6 {[%clk 0:03:00.7]} 3. b3 {[%clk 0:02:28.7]} 3... Nf6 {[%clk 0:02:59.7]}
4. Bb2 {[%clk 0:02:28.8]} 4... Bg4 {[%clk 0:02:56.8]} 5. e3 {[%clk 0:02:26.6]}
5... Nbd7 {[%clk 0:02:56.3]} 6. Be2 {[%clk 0:02:20.9]} 6... e6 {[%clk
0:02:55.2]} 7. O-O {[%clk 0:02:12.3]} 7... Bd6 {[%clk 0:02:55]} 8. h3 {[%clk
0:02:08.1]} 8... Bh5 {[%clk 0:02:54.5]} 9. d4 {[%clk 0:02:06.2]} 9... Bxf3
{[%clk 0:02:51.8]} 10. Bxf3 {[%clk 0:02:05.4]} 10... O-O {[%clk 0:02:52.2]} 11.
Nc3 {[%clk 0:02:04.3]} 11... Re8 {[%clk 0:02:27.5]} 12. e4 {[%clk 0:02:01]}
12... dxe4 {[%clk 0:02:19.2]} 13. Nxe4 {[%clk 0:02:01.9]} 13... Nxe4 {[%clk
0:02:18.7]} 14. Bxe4 {[%clk 0:02:00.9]} 14... Nf6 {[%clk 0:02:15.1]} 15. Bf3
{[%clk 0:01:39.7]} 15... e5 {[%clk 0:02:15]} 16. dxe5 {[%clk 0:01:33.4]} 16...
Bxe5 {[%clk 0:02:15.9]} 17. Bxe5 {[%clk 0:01:30.5]} 17... Rxe5 {[%clk
0:02:15.6]} 18. Qxd8+ {[%clk 0:01:29.5]} 18... Rxd8 {[%clk 0:02:16.5]} 19. Rad1
{[%clk 0:01:29.3]} 19... Ree8 {[%clk 0:02:11.7]} 20. g4 {[%clk 0:01:27.7]} 20...
h6 {[%clk 0:02:10.6]} 21. Kg2 {[%clk 0:01:25.8]} 21... g5 {[%clk 0:02:09.2]} 22.
Rxd8 {[%clk 0:01:21.3]} 22... Rxd8 {[%clk 0:02:09.1]} 23. Rd1 {[%clk 0:01:21.1]}
23... Rxd1 {[%clk 0:02:08.4]} 24. Bxd1 {[%clk 0:01:20.7]} 24... Ne4 {[%clk
0:02:06]} 25. Bc2 {[%clk 0:01:17.6]} 25... Nc3 {[%clk 0:01:59.8]} 26. a3 {[%clk
0:01:13.9]} 26... Ne2 {[%clk 0:01:59.8]} 27. Bd1 {[%clk 0:01:06.1]} 27... Nf4+
{[%clk 0:01:57.4]} 28. Kg3 {[%clk 0:01:04.8]} 28... Kg7 {[%clk 0:01:49.4]} 29.
h4 {[%clk 0:01:04.9]} 29... Kf6 {[%clk 0:01:49.5]} 30. hxg5+ {[%clk 0:01:04.8]}
30... hxg5 {[%clk 0:01:50.2]} 31. Kf3 {[%clk 0:01:00.9]} 31... Ke5 {[%clk
0:01:50.3]} 32. Ke3 {[%clk 0:01:01.1]} 32... c5 {[%clk 0:01:46.1]} 33. Bf3
{[%clk 0:00:57.2]} 33... b6 {[%clk 0:01:44.7]} 34. Bb7 {[%clk 0:00:52.4]} 34...
a5 {[%clk 0:01:42.7]} 35. Bc6 {[%clk 0:00:47.7]} 35... f6 {[%clk 0:01:42.2]} 36.
f3 {[%clk 0:00:41.9]} 36... Ng2+ {[%clk 0:01:34.2]} 37. Kf2 {[%clk 0:00:40.3]}
37... Nf4 {[%clk 0:01:29.9]} 38. Ke3 {[%clk 0:00:40.4]} 38... Ne6 {[%clk
0:01:30]} 39. Ba4 {[%clk 0:00:19.4]} 39... Nd4 {[%clk 0:01:27.4]} 40. b4 {[%clk
0:00:03.6]} 40... axb4 {[%clk 0:01:24.5]} 41. axb4 {[%clk 0:00:03.6]} 41... cxb4
{[%clk 0:01:24.9]} 0-1

[Event "*** Titled Tuesday Blitz"]
[Site "Chess.com"]
[Date "2021.04.27"]
[Round "6"]
[White "davigator"]
[Black "VladimirBugayev"]
[Result "0-1"]
[WhiteElo "2429"]
[BlackElo "2258"]
[TimeControl "180+1"]
[EndTime "11:06:01 PDT"]
[Termination "VladimirBugayev won by checkmate"]

1. e4 {[%clk 0:03:00.9]} 1... c6 {[%clk 0:02:56.8]} 2. d4 {[%clk 0:02:59.4]}
2... d5 {[%clk 0:02:57.3]} 3. e5 {[%clk 0:02:59.5]} 3... Bf5 {[%clk 0:02:56.7]}
4. h4 {[%clk 0:02:58.8]} 4... h6 {[%clk 0:02:54.4]} 5. g4 {[%clk 0:02:57]} 5...
Be4 {[%clk 0:02:54.7]} 6. f3 {[%clk 0:02:56.4]} 6... Bh7 {[%clk 0:02:55.1]} 7.
e6 {[%clk 0:02:55.8]} 7... Qd6 {[%clk 0:02:55.6]} 8. exf7+ {[%clk 0:02:55.1]}
8... Kxf7 {[%clk 0:02:56.5]} 9. Bd3 {[%clk 0:02:54.7]} 9... Bxd3 {[%clk
0:02:49.3]} 10. Qxd3 {[%clk 0:02:53.9]} 10... Nd7 {[%clk 0:02:47.2]} 11. Ne2
{[%clk 0:02:47.9]} 11... e5 {[%clk 0:02:46.9]} 12. Qf5+ {[%clk 0:02:47.1]} 12...
Ngf6 {[%clk 0:02:43.9]} 13. h5 {[%clk 0:02:46.2]} 13... exd4 {[%clk 0:02:31.2]}
14. Qg6+ {[%clk 0:02:45.5]} 14... Kg8 {[%clk 0:02:31.8]} 15. Bf4 {[%clk
0:02:42.8]} 15... Qb4+ {[%clk 0:02:29.7]} 16. Nd2 {[%clk 0:02:41.8]} 16... Re8
{[%clk 0:02:13.2]} 17. Kd1 {[%clk 0:02:32]} 17... d3 {[%clk 0:02:11.9]} 18. cxd3
{[%clk 0:02:26.8]} 18... Rxe2 {[%clk 0:02:10.3]} 19. Kxe2 {[%clk 0:02:26.5]}
19... Qxf4 {[%clk 0:02:10.3]} 20. Rae1 {[%clk 0:02:22.6]} 20... Ne5 {[%clk
0:01:59.7]} 21. Qf5 {[%clk 0:02:18.9]} 21... Qxf5 {[%clk 0:01:57.1]} 22. gxf5
{[%clk 0:02:19.5]} 22... Bb4 {[%clk 0:01:54.9]} 23. f4 {[%clk 0:02:18.3]} 23...
Bxd2 {[%clk 0:01:49.5]} 24. Ref1 {[%clk 0:02:13.4]} 24... Bxf4 {[%clk
0:01:24.1]} 25. Rxf4 {[%clk 0:02:12.4]} 25... Kf7 {[%clk 0:01:24.6]} 26. Re1
{[%clk 0:02:10.5]} 26... Nxh5 {[%clk 0:01:15.1]} 27. Ra4 {[%clk 0:02:09.1]}
27... a6 {[%clk 0:00:57.3]} 28. d4 {[%clk 0:02:06.8]} 28... Nc4 {[%clk
0:00:31.1]} 29. Rb4 {[%clk 0:02:03.8]} 29... Re8+ {[%clk 0:00:28.9]} 30. Kf2
{[%clk 0:01:59.5]} 30... Rxe1 {[%clk 0:00:25.8]} 31. Kxe1 {[%clk 0:01:58.7]}
31... Nd6 {[%clk 0:00:20.6]} 32. Rb3 {[%clk 0:01:53.4]} 32... Kf6 {[%clk
0:00:19.1]} 33. Rh3 {[%clk 0:01:49.9]} 33... Kg5 {[%clk 0:00:17.3]} 34. Kf2
{[%clk 0:01:44.2]} 34... Nxf5 {[%clk 0:00:14.8]} 35. Rb3 {[%clk 0:01:43]} 35...
Nd6 {[%clk 0:00:14.7]} 36. Kf3 {[%clk 0:01:41.5]} 36... Nf6 {[%clk 0:00:14.2]}
37. Ke3 {[%clk 0:01:40.4]} 37... Nfe4 {[%clk 0:00:14.3]} 38. Ke2 {[%clk
0:01:36.5]} 38... h5 {[%clk 0:00:14.3]} 39. Rh3 {[%clk 0:01:35.6]} 39... h4
{[%clk 0:00:14.4]} 40. Ke3 {[%clk 0:01:34.9]} 40... Nf5+ {[%clk 0:00:13.7]} 41.
Kd3 {[%clk 0:01:34.5]} 41... Kg4 {[%clk 0:00:13]} 42. Rh2 {[%clk 0:01:34.2]}
42... h3 {[%clk 0:00:13.2]} 43. b4 {[%clk 0:01:31.8]} 43... Kg3 {[%clk
0:00:12.9]} 44. Re2 {[%clk 0:01:29.7]} 44... h2 {[%clk 0:00:12.6]} 45. Rxe4
{[%clk 0:01:29.9]} 45... dxe4+ {[%clk 0:00:12.4]} 46. Kxe4 {[%clk 0:01:30.8]}
46... h1=Q+ {[%clk 0:00:12.6]} 47. Kxf5 {[%clk 0:01:31.5]} 47... Qd5+ {[%clk
0:00:12.5]} 48. Kg6 {[%clk 0:01:31.6]} 48... Kf4 {[%clk 0:00:11.8]} 49. a3
{[%clk 0:01:30.5]} 49... Qxd4 {[%clk 0:00:10.9]} 50. Kf7 {[%clk 0:01:30.5]}
50... Qf6+ {[%clk 0:00:11.3]} 51. Ke8 {[%clk 0:01:29.9]} 51... g5 {[%clk
0:00:11.4]} 52. a4 {[%clk 0:01:30.3]} 52... g4 {[%clk 0:00:11.1]} 53. b5 {[%clk
0:01:31.2]} 53... cxb5 {[%clk 0:00:10]} 54. axb5 {[%clk 0:01:32.1]} 54... Qg7
{[%clk 0:00:09.7]} 55. bxa6 {[%clk 0:01:30.6]} 55... bxa6 {[%clk 0:00:09.7]} 56.
Kd8 {[%clk 0:01:30.7]} 56... a5 {[%clk 0:00:10.1]} 57. Kc8 {[%clk 0:01:30.8]}
57... a4 {[%clk 0:00:10.7]} 58. Kb8 {[%clk 0:01:31.3]} 58... a3 {[%clk
0:00:11.3]} 59. Ka8 {[%clk 0:01:30.5]} 59... a2 {[%clk 0:00:11.4]} 60. Kb8
{[%clk 0:01:30]} 60... a1=Q {[%clk 0:00:11.3]} 61. Kc8 {[%clk 0:01:30.7]} 61...
Qa8# {[%clk 0:00:11.3]} 0-1

[Event "*** Titled Tuesday Blitz"]
[Site "Chess.com"]
[Date "2021.04.27"]
[Round "6"]
[White "Piotrek1979"]
[Black "ajedrez1101"]
[Result "1-0"]
[WhiteElo "2334"]
[BlackElo "2161"]
[TimeControl "180+1"]
[EndTime "11:06:04 PDT"]
[Termination "Piotrek1979 won by resignation"]

1. Nf3 {[%clk 0:03:00.9]} 1... b6 {[%clk 0:02:59.8]} 2. c4 {[%clk 0:02:57]} 2...
Bb7 {[%clk 0:02:59.8]} 3. b3 {[%clk 0:02:56.3]} 3... e6 {[%clk 0:02:51.5]} 4.
Bb2 {[%clk 0:02:54.7]} 4... Nf6 {[%clk 0:02:51.6]} 5. e3 {[%clk 0:02:47.7]} 5...
Be7 {[%clk 0:02:51.3]} 6. Be2 {[%clk 0:02:45.9]} 6... O-O {[%clk 0:02:51.8]} 7.
g4 {[%clk 0:02:45.5]} 7... Nxg4 {[%clk 0:02:35.2]} 8. Rg1 {[%clk 0:02:44.6]}
8... Bf6 {[%clk 0:02:16.6]} 9. d4 {[%clk 0:02:43.4]} 9... Nh6 {[%clk 0:02:16.2]}
10. Nbd2 {[%clk 0:02:36.4]} 10... d5 {[%clk 0:02:15.3]} 11. Qc2 {[%clk
0:02:32.6]} 11... Nd7 {[%clk 0:02:12.9]} 12. O-O-O {[%clk 0:02:19.6]} 12... c5
{[%clk 0:01:56.4]} 13. Kb1 {[%clk 0:01:50.6]} 13... Rc8 {[%clk 0:01:43.5]} 14.
h4 {[%clk 0:01:38.5]} 14... cxd4 {[%clk 0:01:04.3]} 15. Bxd4 {[%clk 0:01:10.7]}
15... Bxd4 {[%clk 0:00:57.6]} 16. Nxd4 {[%clk 0:01:09.5]} 16... Qxh4 {[%clk
0:00:50.5]} 17. N2f3 {[%clk 0:00:49]} 17... Qe7 {[%clk 0:00:36.5]} 18. Rh1
{[%clk 0:00:35.4]} 18... Nf6 {[%clk 0:00:26.4]} 19. Rdg1 {[%clk 0:00:33.7]}
19... Kh8 {[%clk 0:00:26.4]} 20. Ng5 {[%clk 0:00:30.1]} 20... dxc4 {[%clk
0:00:19]} 21. f3 {[%clk 0:00:29.4]} 21... cxb3 {[%clk 0:00:17.3]} 22. Qxb3
{[%clk 0:00:30.3]} 22... Bd5 {[%clk 0:00:15.8]} 23. Qb2 {[%clk 0:00:28.5]} 23...
Qc5 {[%clk 0:00:10.9]} 24. Rxh6 {[%clk 0:00:19.6]} 24... gxh6 {[%clk 0:00:10.7]}
25. Nc6 {[%clk 0:00:19.6]} 25... Qc3 {[%clk 0:00:08.9]} 26. Qxc3 {[%clk
0:00:18.7]} 1-0